[Event "Paracin Open 2022"]
[Site "Paracin"]
[Date "2022.07.08"]
[Round "1.1"]
[White "Predke, Alexandr"]
[Black "Sanket Chakravarty"]
[Result "1-0"]
[ECO "B23"]
[WhiteElo "2688"]
[BlackElo "2209"]
[Annotator "TA"]
[PlyCount "83"]
[EventDate "2022.07.08"]
[EventCountry "SRB"]
[SourceTitle "playchess.com"]
[Source "ChessBase"]
[SourceQuality "1"]
[TimeControl "5400+30"]

{[%evp 9,83,4,8,0,0,0,13,8,29,-14,-11,-16,-10,-11,-12,-20,-41,-56,-68,-63,-59,-60,-61,-62,-62,-70,-76,-86,-61,-85,-72,-113,-66,-80,-69,-78,-75,-84,-57,-80,-79,-87,-64,-152,-132,-130,-83,-106,-62,-64,-19,0,0,-7,-7,-22,-7,-20,0,0,5,5,4,4,4,10,126,135,481,465,466,453,564,349,351,321]} 1. e4 {[%emt 0:00:04]} c5 {[%emt 0:01:49]} 2. Nc3 {[%emt 0:00:08]} Nc6 {[%emt 0:00:04]} 3. Bb5 {[%emt 0:00:07]} Nd4 {[%emt 0:00:07]} 4. Nf3 {[%emt 0:00:05]} a6 {[%emt 0:00:28]} 5. Bd3 {[%emt 0:00:09]} g6 {[%emt 0:00:21]} 6. O-O {[%emt 0:00:07] B23: Closed Sicilian: Lines without g3.} Bg7 {[%emt 0:01:19]} 7. Re1 {[%emt 0:00:07]} Nh6 {[%emt 0:04:56]} 8. Rb1 {[%emt 0:14:34] [#] The position is equal.} b5 $146 {[%emt 0:00:14][%cal Bb7b5,Bb5b4][%mdl 32]} ({Predecessor:} 8... d6 9. h3 Nc6 10. a3 b5 11. Nd5 e6 12. Ne3 O-O 13. c4 b4 14. axb4 Nxb4 {1-0 (58) Matinian,N (2454)-Fedoseev,V (2704) Chess.com INT 2022}) 9. b3 {[%emt 0:05:19]} (9. b4 $5 {[%cal Rb4c5]}) 9... Bb7 {[%emt 0:03:22]} 10. a4 {[%emt 0:06:55][%cal Ra4b5]} b4 {[%emt 0:07:43]} 11. Nxd4 {[%emt 0:04:13]} cxd4 {[%emt 0:04:00]} 12. Nd5 {[%emt 0:00:05]} (12. Na2 $5 {[%cal Ra2b4]}) 12... a5 {[%emt 0:06:20]} 13. Bc4 {[%emt 0:15:06]} e6 {[%emt 0:03:12]} 14. Nf4 {[%emt 0:00:05][%cal Oc2c3]} O-O {[%emt 0:00:55]} 15. d3 {[%emt 0:00:29]} Kh8 {[%emt 0:04:39]} 16. Qf3 {[%emt 0:01:58]} Rc8 {[%emt 0:09:26]} 17. Qh3 {[%emt 0:01:26][%cal Rf4e6]} Ng8 $1 {[%emt 0:01:04]} 18. Rb2 {[%emt 0:09:39]} Ne7 {[%emt 0:02:26]} 19. Ne2 {[%emt 0:00:59]} Rc5 {[%emt 0:03:47]} 20. Bh6 {[%emt 0:00:55]} Rh5 {[%emt 0:11:15]} ({Better is} 20... d5 $17 21. exd5 Nxd5) 21. Bxg7+ $15 {[%emt 0:00:11]} Kxg7 {[%emt 0:00:01]} 22. Qg3 {[%emt 0:00:52]} e5 {[%emt 0:01:15]} 23. Rbb1 {[%emt 0:07:15]} d5 {[%emt 0:01:49]} 24. exd5 {[%emt 0:00:04]} Nxd5 {[%emt 0:00:06]} ({But not} 24... Bxd5 $6 25. f3 $11) 25. Bxd5 {[%emt 0:06:00]} Qxd5 {[%emt 0:01:04]} 26. Rbd1 {[%emt 0:02:32]} (26. f3 $15) 26... f6 {[%emt 0:03:35] Strongly threatening ...Rg5.} 27. f4 {[%emt 0:00:36] Prevents Rg5.} Rf5 {[%emt 0:03:24]} ({Black should play} 27... Qc5 28. Qf2 Rf5) 28. Rf1 {[%emt 0:13:36]} Kh8 {[%emt 0:02:19]} 29. Rf2 {[%emt 0:01:46]} Qc6 {[%emt 0:01:59]} 30. Rdf1 {[%emt 0:01:23]} Qd5 {[%emt 0:03:24]} (30... Qxc2 $2 31. Nxd4 $1 {[%mdl 512]} Qc7 32. Nxf5 gxf5 33. fxe5 $18) 31. Qg4 {[%emt 0:04:08]} Rf7 {[%emt 0:03:37]} 32. h3 {[%emt 0:00:47]} h5 {[%emt 0:07:51]} 33. Qg3 {[%emt 0:01:44]} ({Much weaker is} 33. Qxg6 Rg7 34. Qh6+ Kg8 $17) 33... Rg7 {[%emt 0:00:43]} 34. Qh4 {[%emt 0:01:35]} Kg8 {[%emt 0:02:11] Threatens to win with ...g5.} 35. fxe5 $1 {[%emt 0:00:37]} fxe5 {[%emt 0:00:01]} 36. Ng3 {[%emt 0:00:06] aiming for Ne4.} Rxf2 $1 {[%emt 0:03:23]} 37. Rxf2 {[%emt 0:00:04][%cal Bf1f2,Bf2e2,Be2e5][%mdl 32] And now Ne4 would win.} Rf7 {[%emt 0:00:05] [#]} (37... Qd6 $1 $11) 38. Re2 $1 $16 {[%emt 0:00:46]} ({Much worse is} 38. Ne4 $6 Rxf2 39. Kxf2 Qf7+ 40. Ke2 Qc7 $11) 38... Rf4 $2 {[%emt 0:01:56][%mdl 8192] Loses the game.} (38... Qd6 $16 {is tougher.}) 39. Qg5 $1 $18 {[%emt 0:00:48][%csl LRe5,LRg6,LRh5]} Qf7 {[%emt 0:00:40]} 40. Rxe5 {[%emt 0:01:40]} Rf2 {[%emt 0:01:36]} 41. Ne4 {[%emt 0:01:11]} Bxe4 {[%emt 0:01:07]} 42. dxe4 {[%emt 0:00:43] Weighted Error Value: White=0.13 (very precise) /Black=0.31} 1-0

[Event "Paracin Open 2022"]
[Site "Paracin"]
[Date "2022.07.08"]
[Round "1.2"]
[White "Srija, Seshadri"]
[Black "Praggnanandhaa R"]
[Result "0-1"]
[ECO "B57"]
[WhiteElo "2208"]
[BlackElo "2648"]
[Annotator "TA"]
[PlyCount "58"]
[EventDate "2022.07.08"]
[EventCountry "SRB"]
[SourceTitle "playchess.com"]
[Source "ChessBase"]
[SourceQuality "1"]
[TimeControl "5400+30"]

{[%evp 15,58,0,0,0,0,0,4,-12,0,0,0,0,0,0,0,10,0,0,7,-14,-4,-64,-68,-137,-150,-145,-137,-200,-178,-158,-89,-601,-569,-763,-752,-1102,-1095,-1065,-1008,-967,-472,-536,-536,-5944,-1729]} 1. e4 {[%emt 0:00:07]} c5 {[%emt 0:00:41]} 2. Nf3 {[%emt 0:00:12]} Nc6 {[%emt 0:00:06]} 3. d4 {[%emt 0:00:24]} cxd4 {[%emt 0:00:06]} 4. Nxd4 {[%emt 0:00:04]} Nf6 {[%emt 0:00:05]} 5. Nc3 {[%emt 0:00:08]} d6 {[%emt 0:00:07]} 6. Bc4 {[%emt 0:01:10]} Qb6 {[%emt 0:00:16]} 7. Nb3 {[%emt 0:00:25]} e6 {[%emt 0:00:23]} 8. Qe2 {[%emt 0:01:24]} a6 {[%emt 0:04:36]} 9. Be3 {[%emt 0:01:40] B57: Classical Sicilian: Sozin with 6...Qb6.} Qc7 {[%emt 0:00:10]} 10. f4 {[%emt 0:00:33]} Be7 {[%emt 0:03:29]} (10... b5 $5 11. Bd3 g6 $11) 11. O-O-O {[%emt 0:07:17] The position is equal.} b5 {[%emt 0:10:12]} 12. Bd3 {[%emt 0:00:38]} Bb7 {[%emt 0:01:56]} 13. g4 {[%emt 0:03:16]} Nb4 $36 {[%emt 0:01:42][%mdl 2048] Black fights for an advantage.} 14. Kb1 {[%emt 0:09:32]} d5 {[%emt 0:19:13][%cal Rd5e4]} 15. e5 {[%emt 0:02:41]} Nd7 {[%emt 0:00:22][%cal Od5d4] [#]} 16. Rhe1 $146 {[%emt 0:04:24]} ({Predecessor:} 16. Bd4 Nxd3 17. cxd3 b4 18. Na4 Qc6 19. Nac5 Nxc5 20. Nxc5 Bxc5 21. Rc1 Bxd4 22. Rxc6 Bxc6 23. Rc1 {0-1 (28) Kadziolka,B (2286)-Simonian,H (2459) Warsaw 2012}) 16... O-O {[%emt 0:08:42]} 17. Bd4 {[%emt 0:09:08]} Rfc8 {[%emt 0:04:29]} 18. f5 {[%emt 0:11:09]} (18. Bf5 $11) 18... Nxd3 $15 {[%emt 0:05:17]} 19. Rxd3 {[%emt 0:02:29]} ({White should try} 19. Qxd3 $15 b4 20. Ne2) 19... b4 $1 $17 {[%emt 0:00:56]} 20. Nd1 {[%emt 0:04:03] [#]} a5 $1 {[%emt 0:01:35][%cal Ba6a5,Ba5a4,Ba4b3][%mdl 32] And now ...a4 would win.} 21. f6 {[%emt 0:05:02]} (21. Qd2 $17) 21... gxf6 $19 {[%emt 0:04:50]} 22. exf6 {[%emt 0:01:16]} Bxf6 {[%emt 0:03:09]} 23. Rf3 $2 {[%emt 0:05:44][%mdl 8192] [#] This move loses the game for White.} (23. Bxf6 $17 Nxf6 24. Qd2) 23... a4 $1 {[%emt 0:06:02] Black is clearly winning.} 24. Rxf6 {[%emt 0:09:14]} axb3 {[%emt 0:01:52]} 25. Nc3 {[%emt 0:01:46]} Nxf6 {[%emt 0:04:54]} 26. Bxf6 {[%emt 0:01:06]} bxc3 {[%emt 0:01:54]} 27. Qe3 {[%emt 0:03:13]} cxb2 {[%emt 0:01:40]} (27... bxc2+ $142 28. Kc1 cxb2+ 29. Bxb2 Ra4 30. Qg5+ Kf8 31. Qg7+ Ke8) 28. Qg5+ {[%emt 0:02:29]} Kf8 {[%emt 0:00:22][%csl Gb3,Gc8][%cal Rc7c2]} 29. Qh6+ {[%emt 0:00:20]} Ke8 {[%emt 0:00:14] Weighted Error Value: White=1.10/Black=0.20 (precise)} 0-1

[Event "Paracin Open 2022"]
[Site "Paracin"]
[Date "2022.07.08"]
[Round "1.3"]
[White "Petrov, Nikita"]
[Black "Veselov, Yaroslav"]
[Result "1-0"]
[ECO "E48"]
[WhiteElo "2558"]
[BlackElo "2206"]
[Annotator "TA"]
[PlyCount "57"]
[EventDate "2022.07.08"]
[EventCountry "SRB"]
[SourceTitle "playchess.com"]
[Source "ChessBase"]
[SourceQuality "1"]
[TimeControl "5400+30"]

{[%evp 15,57,1,8,0,15,3,27,21,11,46,23,15,26,27,32,20,18,14,29,16,336,334,339,332,333,324,320,340,757,772,668,582,1282,1216,1899,1920,1766,1773,1783,1781,1683,1660,1592,1525]} 1. d4 {[%emt 0:00:04]} Nf6 {[%emt 0:00:05]} 2. c4 {[%emt 0:00:12]} e6 {[%emt 0:00:06]} 3. Nc3 {[%emt 0:00:20]} Bb4 {[%emt 0:00:07]} 4. e3 {[%emt 0:00:16]} O-O {[%emt 0:00:28]} 5. Bd3 {[%emt 0:00:26]} c5 {[%emt 0:01:47]} 6. Nge2 {[%emt 0:01:16]} cxd4 {[%emt 0:00:55]} 7. exd4 {[%emt 1:31:26]} d5 {[%emt 0:00:13]} 8. cxd5 {[%emt 0:00:00]} Nxd5 {[%emt 0:00:07]} 9. Bc2 {[%emt 0:00:00] E48: Nimzo-Indian: Rubinstein: 5 Bd3 d5 including 6 Ne2, but excluding 6 a3.} Nd7 {[%emt 0:05:10][%cal Bb8d7,Bd7f6,Bf6h5][%mdl 32] [#]} 10. a3 $146 {[%emt 0:00:00]} ({Predecessor:} 10. Qd3 N7f6 11. O-O h6 12. Nxd5 exd5 13. Bf4 Re8 14. Ng3 Bd6 15. Qd2 Bxf4 16. Qxf4 Be6 {0-1 (40) Ivanisevic,I (2585)-Esipenko,A (2716) Chess.com INT 2021}) 10... Nxc3 {[%emt 0:04:38]} 11. bxc3 {[%emt 0:00:00] White has an edge.} Be7 {[%emt 0:02:56]} 12. Qd3 $40 {[%emt 0:02:30][%csl Gc2][%cal Rd3h7][%mdl 128] [#] White attacks.} Nf6 {[%emt 0:00:51]} 13. Bg5 {[%emt 0:00:00] aiming for Bxf6.} g6 {[%emt 0:02:27]} 14. h4 {[%emt 0:00:00][%cal Bh2h4,Bh4g5][%mdl 32]} Qa5 {[%emt 0:20:26]} 15. Qf3 {[%emt 0:00:00]} Qd5 {[%emt 0:06:22]} 16. Qf4 {[%emt 0:00:00]} Nh5 {[%emt 0:03:18]} 17. Qe3 {[%emt 0:00:00]} Qxg2 $2 {[%emt 0:05:02][%mdl 8192] [#] A mistake that costs the game.} (17... Re8 $11 {and Black is okay.}) 18. Be4 $1 $18 {[%emt 0:00:00]} Bxg5 {[%emt 0:01:03]} 19. hxg5 {[%emt 0:00:00]} Qg4 {[%emt 0:00:11][%cal Oe6e5]} 20. Bf3 {[%emt 0:00:00][%mdl 64] Skewer} Qf5 {[%emt 0:00:26][%cal Oe6e5]} 21. Bxh5 {[%emt 0:00:00] Ng3 is the strong threat.} gxh5 $2 {[%emt 0:00:16]} (21... f6 22. Bf3 Qxg5) 22. Ng3 {[%emt 0:00:00][%cal Be2g3,Bg3e4,Be4f6][%mdl 32] White is clearly winning.} Qd5 {[%emt 0:04:35]} 23. Rxh5 {[%emt 0:00:00] Strongly threatening 0-0-0.} e5 {[%emt 0:00:48]} 24. Ne4 {[%emt 0:06:00] White threatens Nf6+ and mate.} (24. Qd3 e4 25. Qxe4 Qxe4+ 26. Nxe4 Re8 $16) 24... exd4 {[%emt 0:40:13]} 25. Nf6+ {[%emt 0:00:00]} Kg7 {[%emt 0:00:00]} 26. Rxh7+ {[%emt 0:00:00]} (26. Nxd5 dxe3 27. Nxe3 Kg6 $11) 26... Kg6 {[%emt 0:00:00]} 27. Rh6+ {[%emt 0:00:00]} ({Weaker is} 27. Nxd5 dxe3 28. Rh6+ Kxg5 $11) 27... Kg7 {[%emt 0:00:00]} 28. Qf4 {[%emt 0:00:00] Threatening mate with Nh5+.} (28. Nxd5 dxe3 29. Nxe3 Re8 $16) 28... Qe6+ {[%emt 0:00:00]} 29. Kf1 {[%emt 0:00:00] Weighted Error Value: White=0.07 (flawless) /Black=0.63} ({Not} 29. Kd2 dxc3+ 30. Kxc3 Qc6+ 31. Kd2 Rd8+ 32. Ke2 Qb5+ 33. Kf3 (33. Ke1 Bf5 $11) 33... Qf5 $16) 1-0

[Event "Paracin Open 2022"]
[Site "Paracin"]
[Date "2022.07.08"]
[Round "1.4"]
[White "Balabayeva, Xeniya"]
[Black "Makarian, Rudik"]
[Result "0-1"]
[ECO "A47"]
[WhiteElo "2198"]
[BlackElo "2533"]
[Annotator "TA"]
[PlyCount "76"]
[EventDate "2022.07.08"]
[EventCountry "SRB"]
[SourceTitle "playchess.com"]
[Source "ChessBase"]
[SourceQuality "1"]
[TimeControl "5400+30"]

{[%evp 9,76,1,1,0,12,-1,-2,-3,6,2,16,13,18,-18,12,0,0,0,0,-19,-21,-29,-8,-7,0,0,0,-5,8,20,33,-59,-56,-67,-69,-68,-61,-53,-16,-89,-97,-246,-237,-227,-223,-213,-225,-237,-234,-241,-249,-227,-215,-217,-217,-222,-213,-347,-351,-267,-345,-327,-353,-345,-352,-359,-331,-462,-450]} 1. d4 {[%emt 0:00:05]} Nf6 {[%emt 0:00:41]} 2. Nf3 {[%emt 0:00:19]} b6 {[%emt 0:00:55]} 3. Bg5 {[%emt 0:03:23]} Bb7 {[%emt 0:02:03]} 4. Nbd2 {[%emt 0:04:01]} g6 {[%emt 0:00:39]} 5. Bxf6 {[%emt 0:03:17]} exf6 {[%emt 0:00:03]} 6. e4 {[%emt 0:00:23] A47: 1 d4 Nf6 2 Nf3 b6: Torre, London and Colle Systems.} Bh6 {[%emt 0:01:13]} 7. Bd3 {[%emt 0:01:51]} O-O {[%emt 0:00:44]} 8. O-O {[%emt 0:01:04] The position is equal.} Re8 {[%emt 0:09:12]} 9. Re1 {[%emt 0:04:54]} d6 {[%emt 0:00:48] [#]} 10. c3 $146 {[%emt 0:02:57]} ({Predecessor:} 10. a4 a5 11. c3 Nd7 12. Qc2 Re7 13. Bb5 c6 14. Bd3 Qc7 15. Re2 Rae8 16. Rae1 {½-½ (44) Timman,J (2630)-Rozentalis,E (2650) Malmo 1997}) 10... Nd7 {[%emt 0:00:09]} 11. b4 {[%emt 0:08:07]} Nf8 {[%emt 0:06:29]} 12. a4 {[%emt 0:07:09]} a6 {[%emt 0:00:08]} 13. d5 {[%emt 0:08:26]} f5 {[%emt 0:03:09]} 14. c4 {[%emt 0:23:00]} fxe4 {[%emt 0:03:56]} 15. Nxe4 {[%emt 0:03:53]} Bg7 {[%emt 0:00:09] Strongly threatening ...f5.} 16. Ra2 {[%emt 0:03:27]} a5 {[%emt 0:00:09]} 17. b5 {[%emt 0:01:53]} Nd7 {[%emt 0:04:55]} 18. Rae2 {[%emt 0:07:39]} Ne5 {[%emt 0:00:28]} 19. Nd4 {[%emt 0:02:08]} f5 {[%emt 0:03:16][%cal Bf7f5,Bf5f4,Bf4f3][%mdl 32]} 20. Nc3 {[%emt 0:05:47]} (20. Nd2 $14) 20... Qh4 $15 {[%emt 0:00:36]} 21. Nc6 {[%emt 0:03:30]} Rf8 {[%emt 0:05:41] Threatens to win with ...Bxc6.} 22. Nxe5 {[%emt 0:02:31]} Bxe5 {[%emt 0:00:03][%cal Bg7e5,Be5h2,Bh2g3,Bg3f2,Bf2c5][%mdl 32]} 23. g3 {[%emt 0:00:38]} Qd4 {[%emt 0:00:08]} 24. Nb1 {[%emt 0:01:00]} (24. Rc2 $11 {keeps the balance.}) 24... f4 $17 {[%emt 0:00:08] Black is more active.} 25. g4 {[%emt 0:00:15] White does not recover from this.} (25. Be4 $17 {might work better.}) 25... f3 $1 $19 {[%emt 0:01:35][%csl LRe2,LRg4]} 26. Re4 {[%emt 0:00:17] [#]} Bxh2+ $1 {[%emt 0:00:06][%mdl 512]} 27. Kh1 {[%emt 0:00:50]} Qxf2 $40 {[%emt 0:00:17][%csl Gf3][%cal Rf2g2][%mdl 128] White is in trouble.} 28. Qd2 {[%emt 0:00:11]} Bg3 {[%emt 0:01:20]} 29. Qxf2 {[%emt 0:00:08]} Bxf2 {[%emt 0:00:04]} 30. Rf1 {[%emt 0:00:04]} Bc5 {[%emt 0:00:26] Hoping for ...Bb4.} 31. Nd2 {[%emt 0:00:26]} f2 {[%emt 0:00:02] ...Rae8 is the strong threat.} 32. Kg2 {[%emt 0:00:06]} Rae8 {[%emt 0:00:07]} 33. Rxe8 {[%emt 0:00:49]} Rxe8 {[%emt 0:00:22]} 34. Ne4 {[%emt 0:00:06] Black must now prevent Nf6+.} Kg7 {[%emt 0:00:04] Inhibits Nf6.} ({And not} 34... Bd4 35. Rxf2 Bc8 36. Re2 $17) 35. Nxc5 {[%emt 0:02:25]} dxc5 {[%emt 0:00:16]} ({Inferior is} 35... bxc5 36. Kxf2 Bc8 37. Rg1 $17) 36. Rxf2 {[%emt 0:00:19] [#]} Bc8 $1 {[%emt 0:00:16]} 37. Be2 {[%emt 0:01:10]} Re4 {[%emt 0:00:37]} 38. Kf3 {[%emt 0:00:31]} Rxg4 {[%emt 0:00:26] Weighted Error Value: White=0.20 (precise) /Black=0.06 (flawless)} 0-1

[Event "Paracin Open 2022"]
[Site "Paracin"]
[Date "2022.07.08"]
[Round "1.5"]
[White "Zanan, Evgeny"]
[Black "Radojicic, Aleksandar M"]
[Result "1-0"]
[ECO "B40"]
[WhiteElo "2521"]
[BlackElo "2188"]
[Annotator "TA"]
[PlyCount "73"]
[EventDate "2022.07.08"]
[EventCountry "SRB"]
[SourceTitle "playchess.com"]
[Source "ChessBase"]
[SourceQuality "1"]
[TimeControl "5400+30"]

{[%evp 10,73,0,0,12,0,7,4,8,-8,-8,-15,21,-25,19,0,0,-6,-3,-32,-32,-29,-30,-29,-19,-60,-37,-70,-66,-62,-60,-79,-52,-72,-79,-86,-79,-86,-50,-52,0,-72,0,0,0,0,0,0,0,0,0,0,318,308,740,587,1151,1578,1435,1222,2689,2554,2400,2404,29992,29993]} 1. e4 {[%emt 0:00:03]} c5 {[%emt 0:03:58]} 2. Nf3 {[%emt 0:00:10]} e6 {[%emt 0:00:05]} 3. Nc3 {[%emt 0:00:04]} a6 {[%emt 0:00:11]} 4. a4 {[%emt 0:00:06]} Nc6 {[%emt 0:02:57]} 5. d4 {[%emt 0:03:09]} cxd4 {[%emt 0:01:27]} 6. Nxd4 {[%emt 0:00:06]} Qc7 {[%emt 0:02:35] B40: Sicilian: 2...e6, Unusual lines.} 7. Nxc6 {[%emt 0:27:19]} bxc6 {[%emt 0:13:16]} 8. Bd3 {[%emt 0:01:19]} Nf6 {[%emt 0:19:23][%cal Bg8f6,Bf6d7,Bd7c5,Bc5d3][%mdl 32] The position is equal.} 9. Qe2 {[%emt 0:09:13]} d5 {[%emt 0:04:02]} 10. O-O {[%emt 0:15:03]} Be7 {[%emt 0:19:55]} 11. f4 {[%emt 0:01:36] [#]} (11. Bg5 $142) 11... h5 $146 {[%emt 0:04:06]} ({Predecessor:} 11... O-O 12. b3 Bc5+ 13. Kh1 Bd4 14. Bb2 dxe4 15. Bxe4 Nxe4 16. Qxe4 {0-1 (30) Heberla,B (2569)-Zezulkin,J (2448) Warsaw 2006}) 12. e5 {[%emt 0:01:40]} Nd7 {[%emt 0:04:44]} 13. a5 {[%emt 0:05:59] Active counter play!} g6 {[%emt 0:04:53]} 14. Nd1 {[%emt 0:05:09]} Nc5 {[%emt 0:03:00]} 15. Be3 {[%emt 0:03:13]} Nxd3 {[%emt 0:00:54]} 16. cxd3 {[%emt 0:01:23][%cal Bc2d3,Bd3d4][%mdl 32]} c5 {[%emt 0:00:20][%cal Bc6c5,Bc5c4][%mdl 32]} 17. d4 {[%emt 0:10:36]} Bd7 {[%emt 0:04:04] White must now prevent ...cxd4.} 18. Qf2 {[%emt 0:02:49][%cal Rd4c5]} c4 {[%emt 0:02:02]} 19. Bd2 {[%emt 0:00:01]} Rb8 {[%emt 0:00:16]} 20. Bc3 {[%emt 0:00:04]} Bb4 {[%emt 0:02:18]} 21. Ne3 {[%emt 0:00:59]} Rb5 {[%emt 0:01:24]} 22. Qh4 {[%emt 0:02:43]} Qd8 {[%emt 0:01:01]} (22... Bxa5 $2 23. Rxa5 Rxa5 24. Bb4 $18) 23. Qh3 {[%emt 0:00:09]} Be7 {[%emt 0:03:54]} 24. g4 {[%emt 0:02:50]} Qc8 {[%emt 0:00:31]} (24... Rf8 $15) 25. Kh1 {[%emt 0:03:09] [#]} (25. f5 $11) 25... Kd8 {[%emt 0:00:33]} ({Black should play} 25... Rf8 $1 $17) 26. f5 $11 {[%emt 0:00:47]} Kc7 {[%emt 0:00:29] Hoping for ...hxg4.} 27. fxg6 {[%emt 0:00:54]} fxg6 {[%emt 0:00:24]} 28. Rf7 {[%emt 0:00:08]} Qe8 {[%emt 0:00:42]} 29. Raf1 {[%emt 0:00:09]} Bg5 {[%emt 0:00:46]} 30. Nc2 {[%emt 0:02:25] Strongly threatening Bb4.} Rb7 {[%emt 0:00:40][%mdl 8192] [#]} (30... Be7 $11) 31. Bb4 $1 $18 {[%emt 0:00:34]} ({Less strong is} 31. Nb4 Ra7 $16) 31... Bh6 $2 {[%emt 0:00:38]} (31... hxg4 32. Bd6+ (32. Qxg4 Bh6 $16) 32... Kc8) 32. Bd6+ {[%emt 0:00:32]} Kc6 {[%emt 0:00:00]} 33. Qa3 {[%emt 0:00:48][%csl Gd4,Gd6][%cal Ra3c5]} Rb5 {[%emt 0:00:28] Prevents Qc5+.} 34. g5 {[%emt 0:00:19][%cal Bg4g5,Bg5h6][%mdl 32]} Qd8 {[%emt 0:00:31]} 35. Nb4+ {[%emt 0:00:50]} Kb7 {[%emt 0:00:14]} 36. gxh6 {[%emt 0:00:04]} Rxa5 {[%emt 0:00:28] [#]} 37. Rxd7+ $1 {[%emt 0:00:09] Weighted Error Value: White=0.12 (very precise) /Black=0.66} 1-0

[Event "Paracin Open 2022"]
[Site "Paracin"]
[Date "2022.07.08"]
[Round "1.6"]
[White "Efremov, Vladislav"]
[Black "Santiago, Yago De Moura"]
[Result "1/2-1/2"]
[ECO "D33"]
[WhiteElo "2185"]
[BlackElo "2513"]
[Annotator "TA"]
[PlyCount "82"]
[EventDate "2022.07.08"]
[EventCountry "SRB"]
[SourceTitle "playchess.com"]
[Source "ChessBase"]
[SourceQuality "1"]
[TimeControl "5400+30"]

{[%evp 16,82,52,45,31,50,44,43,39,52,50,45,59,52,58,38,50,53,59,39,28,0,0,3,4,4,6,0,0,0,0,0,0,0,0,0,0,0,0,0,0,0,0,0,0,0,0,0,0,0,0,0,0,0,0,0,0,0,0,0,0,0,0,0,0,0,0,0,0]} 1. d4 {[%emt 0:00:12]} Nf6 {[%emt 0:00:23]} 2. c4 {[%emt 0:00:30]} e6 {[%emt 0:00:13]} 3. Nf3 {[%emt 0:01:25][%cal Bg1f3,Bf3d4,Bd4b3][%mdl 32]} d5 {[%emt 0:00:19]} 4. Nc3 {[%emt 0:00:43]} c5 {[%emt 0:00:57]} 5. cxd5 {[%emt 0:02:19]} exd5 {[%emt 0:00:16]} 6. g3 {[%emt 0:07:58]} Nc6 {[%emt 0:00:38]} 7. Bg2 {[%emt 0:00:28]} cxd4 {[%emt 0:00:46]} 8. Nxd4 {[%emt 0:00:05]} Bc5 {[%emt 0:00:14]} 9. Nb3 {[%emt 0:00:32][%csl LRc5,LRd5]} Bb6 {[%emt 0:00:22] D33: Tarrasch Defence: 6 g3 sidelines.} 10. O-O {[%emt 0:04:46]} ({Don't play} 10. Bxd5 Nb4 11. Bf3 Qxd1+ 12. Kxd1 Ng4 13. Bxg4 Bxg4 $11) 10... d4 {[%emt 0:01:04]} 11. Na4 {[%emt 0:02:34]} O-O {[%emt 0:00:26] White is slightly better.} 12. Bg5 {[%emt 0:10:18]} Re8 {[%emt 0:02:11]} 13. Re1 {[%emt 0:06:31]} h6 {[%emt 0:08:41]} 14. Nxb6 {[%emt 0:00:30] 14.Bxf6 might become the main line.} (14. Bxc6 {looks sharper.} bxc6 15. Bxf6 Qxf6 16. Nxb6 axb6 17. Qxd4 Qd8 18. Qc3) 14... axb6 {[%emt 0:00:10]} 15. Bxc6 {[%emt 0:00:41]} (15. Bxf6 {keeps more tension.} Qxf6 16. Bxc6 bxc6 17. Qxd4 Qd8 18. Qc3) 15... bxc6 {[%emt 0:00:09]} 16. Bxf6 {[%emt 0:00:06]} Qxf6 {[%emt 0:00:08]} 17. Qxd4 {[%emt 0:00:11]} Qd8 {[%emt 0:00:12]} 18. Qxd8 {[%emt 0:14:55]} Rxd8 {[%emt 0:01:01] The position is equal.} 19. Rad1 {[%emt 0:00:21]} Rxd1 {[%emt 0:04:17]} 20. Rxd1 $11 {[%emt 0:00:13][%mdl 4096] Endgame Hoping for Rd8+. KRB-KRN} Be6 {[%emt 0:00:14]} 21. Nc1 {[%emt 0:01:37]} Bxa2 {[%emt 0:03:09]} 22. Nxa2 {[%emt 0:00:14]} Rxa2 {[%emt 0:00:07] [#] KR-KR} 23. Rd8+ $146 {[%emt 0:00:36]} ({Predecessor:} 23. Rd6 Ra1+ 24. Kg2 Rc1 25. b4 Kf8 26. Rd7 b5 27. Rc7 Rc4 28. f4 Ke8 29. Kf3 Rxb4 30. Rxc6 {½-½ (44) Yilmazyerli,M (2439)-Dudin,G (2482) Ayvalik 2022}) 23... Kh7 {[%emt 0:00:09]} 24. Rd6 {[%emt 0:00:08]} Ra1+ {[%emt 0:01:30]} 25. Kg2 {[%emt 0:00:05]} Rc1 {[%emt 0:00:04]} 26. Kf3 {[%emt 0:01:29]} Rc2 {[%emt 0:13:34]} 27. Ke3 {[%emt 0:04:03]} g5 {[%emt 0:01:52]} 28. Kd3 {[%emt 0:02:01]} Rxb2 {[%emt 0:00:23]} 29. Rxc6 {[%emt 0:00:04]} Kg7 {[%emt 0:00:34]} 30. g4 {[%emt 0:09:53]} b5 {[%emt 0:03:21]} 31. Rb6 {[%emt 0:00:21]} b4 {[%emt 0:00:49]} 32. Ke3 {[%emt 0:06:05]} b3 {[%emt 0:02:06]} 33. Kf3 {[%emt 0:00:16]} Rb1 {[%emt 0:01:27]} 34. e3 {[%emt 0:00:51]} f6 {[%emt 0:01:25]} 35. Rb7+ {[%emt 0:03:43]} Kg6 {[%emt 0:01:35]} 36. h3 {[%emt 0:01:38]} h5 {[%emt 0:01:31]} 37. Kg2 {[%emt 0:00:25]} b2 {[%emt 0:03:13]} 38. Kf3 {[%emt 0:01:12]} h4 {[%emt 0:12:52]} 39. Kg2 {[%emt 0:00:21]} Kh6 {[%emt 0:00:07]} 40. Kf3 {[%emt 0:00:18]} Kg6 {[%emt 0:03:03]} 41. Kg2 {[%emt 0:00:09]} Kh6 {[%emt 0:00:03] Weighted Error Value: White=0.02 (flawless) /Black=0.00 (flawless)} 1/2-1/2